Cogmind - Beta 11 @@@ ROGUE MODE // 2022.03.17 @ 23:40:32 Player: cl0y-b1cks Result: Destroyed by as-36835 with Assembled Heavy Rifle Performance ------------- Evolutions (0) 0 Regions Visited (2) 400 Robots Destroyed (6) 30 Value Destroyed (239) 239 Prototype IDs (0) 0 Alien Tech Used (0) 0 Bonus (0) 0 TOTAL SCORE: 669 Bonus ------- None Cogmind --------- Core Integrity 0/250 Matter 5/300 Energy 94/100 System Corruption 0% Temperature Cool (0) Movement Core (200) Ox3 Location -10/Mines Parts ------- > --- POWER (1) -------- (None) > --- PROPULSION (2) --- (None) > --- UTILITY (2) ------ Medium Storage Unit > --- WEAPON (2) ------- Mini Grenade Launcher > --- INVENTORY (10) --- Aluminum Leg Aluminum Leg Improved Aluminum Leg Compact Wheel Small Storage Unit Medium Matter Pod (0) Small Laser Peak State ------------ > --- POWER ------------ Light Ion Engine > --- PROPULSION ------- Improved Aluminum Leg Improved Aluminum Leg > --- UTILITY ---------- Medium Storage Unit Medium Armor Plating > --- WEAPON ----------- Light Assault Rifle Grenade Launcher > --- INVENTORY -------- Aluminum Leg Aluminum Leg Improved Aluminum Leg Compact Wheel Small Storage Unit Medium Matter Pod Small Laser Mini Grenade Launcher [Rating: 11] Favorites ----------- Power Light Ion Engine Engine Light Ion Engine Propulsion Improved Aluminum Leg Leg Improved Aluminum Leg Utility Medium Storage Unit Storage Medium Storage Unit Protection Medium Armor Plating Weapon Grenade Launcher Energy Gun Small Laser Ballistic Gun Light Assault Rifle Launcher Grenade Launcher Build | -11 -10 -10 ------- Run | Scr Mat Min Slots Evolved . | . . . Power . | . . . Propulsion . | . . . Utility . | . . . Weapon . | . . . Parts Attached 14 | 6 6 2 Power 1 | 1 . . Engine 1 | 1 . . Core . | . . . Reactor . | . . . Propulsion 5 | 2 3 . Treads . | . . . Leg 5 | 2 3 . Wheel . | . . . Hover . | . . . Flight . | . . . Utility 3 | 1 2 . Device . | . . . Storage 2 | 1 1 . Processor . | . . . Hackware . | . . . Protection 1 | . 1 . Artifact . | . . . Weapon 5 | 2 1 2 Energy Gun 1 | 1 . . Energy Cannon . | . . . Ballistic Gun 1 | 1 . . Ballistic Cannon . | . . . Launcher 3 | . 1 2 Special Weapon . | . . . Impact Weapon . | . . . Slashing Weapon . | . . . Piercing Weapon . | . . . Special Melee Weapon . | . . . Unidentified Prototypes . | . . . Parts Lost 7 | . . 7 Power 1 | . . 1 Propulsion 2 | . . 2 Utility 1 | . . 1 Weapon 3 | . . 3 Highest Loss Streak 3 | . . 3 To Critical Strikes . | . . . Average Slot Usage (%) 76 | . 94 60 Engine 7 | . 14 . Leg 25 | . 28 23 Storage 14 | . 14 14 Protection 4 | . 8 . Energy Gun 1 | . 2 . Ballistic Gun 7 | . 14 . Launcher 16 | . 11 20 Naked Turns . | . . . Heaviest Build 24 | 10 24 17 Greatest Support 26 | 20 26 26 Greatest Overweight (x) 4 | . . 4 Average Overweight (x) . | . . . Largest Inventory Capacity 10 | 8 10 10 Average Capacity 8 | 6 8 10 Most Carried 8 | 1 8 8 Average Carried 5 | . 4 7 Final Capacity 10 | 8 10 10 Final Carried 8 | 1 8 7 Class Distribution -------------------- 100% | Mutant Dominant Class ---------------- Mutant | -10/Materials Mutant | -10/Mines Resources | -11 -10 -10 ----------- Run | Scr Mat Min Matter Collected 173 | 95 49 29 Remotely . | . . . Salvage Created 175 | . 129 46 Parts 11 | . 9 2 Haulers Intercepted 1 | . 1 . Recyclers Shooed . | . . . Parts Field Recycled . | . . . Retrieved Matter . | . . . Parts Self-Destructed . | . . . Prevented . | . . . Kills | -11 -10 -10 ------- Run | Scr Mat Min Combat Hostiles Destroyed 6 | . 2 4 Guns 2 | . 2 . AOE 4 | . . 4 Classes Destroyed 4 | . 3 1 Builder 1 | . 1 . Hauler 1 | . 1 . Grunt 4 | . 2 2 Assembled 2 | . . 2 Best Kill Streak 2 | . 2 2 Combat Bots Only 2 | . 2 2 Max Kills in Single Turn 1 | . 1 1 Gunslinging . | . . . Exploded 1 | . . 1 Melee . | . . . Uniques/NPCs Destroyed . | . . . Combat | -11 -10 -10 -------- Run | Scr Mat Min Damage Taken 936 | . 412 524 Core 253 | . 115 138 Absorbed by Shields . | . . . Core Remaining (%) 100 | 100 . . Volleys Fired 33 | . 25 8 Largest 2 | . 2 2 Hottest 63 | . 50 63 Shots Fired 43 | . 30 13 Gun 30 | . 25 5 Cannon . | . . . Launcher 13 | . 5 8 Special . | . . . Kinetic 30 | . 25 5 Thermal . | . . . Explosive 13 | . 5 8 Electromagnetic . | . . . Robot Hit Streak 5 | . 3 5 Robot Miss Streak 4 | . 3 4 Penetration Max . | . . . Secondary Targets . | . . . Shots Hit Robots 16 | . 10 6 Core Hits 15 | . 8 7 Critical Kills 1 | . 1 . Critical Parts Destroyed . | . . . Critical Strikes 1 | . 1 . Destroy 1 | . 1 . Melee Attacks . | . . . Impact . | . . . Slashing . | . . . Piercing . | . . . Sneak Attacks . | . . . Combat Hostiles . | . . . Follow-up Attacks . | . . . Damage Inflicted 654 | . 293 361 Guns 108 | . 86 22 Cannons . | . . . Explosions 546 | . 207 339 Melee . | . . . Ramming . | . . . Kinetic 108 | . 86 22 Thermal . | . . . Explosive 546 | . 207 339 Electromagnetic . | . . . Impact . | . . . Slashing . | . . . Piercing . | . . . Highest Corruption . | . . . Average Corruption . | . . . Corruption Purged . | . . . Corruption Blocked . | . . . Overload Shots . | . . . Overflow Damage 49 | . 6 43 Projectiles . | . . . Explosions 49 | . 6 43 Melee . | . . . Knockbacks . | . . . Impact . | . . . Kinetic . | . . . Secondary . | . . . Self-Inflicted Damage 375 | . 172 203 Shots 10 | . 3 7 Rammed . | . . . Targets Rammed . | . . . Kicked . | . . . Crushed . | . . . Highest Temperature 33 | . 33 30 Average Temperature 12 | . 10 15 Received Heat Transfer 250 | . 156 94 Siege Activations . | . . . Robots Corrupted . | . . . Combat Hostiles . | . . . Parts Fried . | . . . Impact Corruptions . | . . . Robots Melted . | . . . Combat Hostiles . | . . . Parts Melted . | . . . Heat Transferred . | . . . Parts Sabotaged . | . . . Parts Stolen . | . . . Parts Stripped . | . . . Power Chain Reactions . | . . . Missiles Intercepted . | . . . Alert | -11 -10 -10 ------- Run | Scr Mat Min Peak Influence 347 | . 347 270 Initial 135 | . . 135 Average 179 | . 198 231 Maximum Alert Level 1 | . 1 1 Low Security (%) 35 | 100 43 2 Level 1 64 | . 56 97 Level 2 . | . . . Level 3 . | . . . Level 4 . | . . . Level 5 . | . . . High Security . | . . . Max Security . | . . . Squads Dispatched 3 | . 3 . Investigation . | . . . Extermination . | . . . Reinforcement 3 | . 3 . Assault . | . . . Garrison . | . . . Intercept . | . . . Searches Triggered . | . . . Construction Impeded . | . . . Haulers Reinforced . | . . . Active Scanning Responses . | . . . Cargo Convoy Interrupts . | . . . Stealth | -11 -10 -10 --------- Run | Scr Mat Min Distress Signals . | . . . Communications Jammed . | . . . Distress Signals . | . . . Times Spotted 13 | . 7 6 Peak Tracking Total 3 | . 3 2 Tactical Retreats . | . . . Traps | -11 -10 -10 ------- Run | Scr Mat Min Traps Triggered . | . . . Indirectly . | . . . Trap Hack Attempts . | . . . Triggered . | . . . Disarmed . | . . . Reprogrammed . | . . . Reused . | . . . Traps Extracted . | . . . Installed . | . . . Triggered . | . . . Machines | -11 -10 -10 ---------- Run | Scr Mat Min Machines Disabled 7 | . 6 1 Max in Single Turn 2 | . 2 1 Machines Sabotaged . | . . . Garrisons Compromised . | . . . Overloaded Fab Kills . | . . . Hacking | -11 -10 -10 --------- Run | Scr Mat Min Machines Accessed . | . . . Terminals . | . . . Fabricators . | . . . Repair Stations . | . . . Recycling Units . | . . . Scanalyzers . | . . . Garrison Access . | . . . Total Hacks . | . . . Successful . | . . . Failed . | . . . Catastrophic . | . . . Database Lockouts . | . . . Manual . | . . . Terminals . | . . . Fabricators . | . . . Repair Stations . | . . . Recycling Units . | . . . Scanalyzers . | . . . Garrison Access . | . . . Terminal Hacks . | . . . Fabricator Hacks . | . . . Repair Station Hacks . | . . . Recycling Unit Hacks . | . . . Scanalyzer . | . . . Garrison Access Hacks . | . . . Unauthorized Hacks . | . . . Terminals . | . . . Fabricators . | . . . Repair Stations . | . . . Recycling Units . | . . . Scanalyzers . | . . . Garrison Access . | . . . Data Cores Recovered . | . . . Used . | . . . Hacking Detections . | . . . Full Trace Events . | . . . Feedback Events . | . . . Feedback Blocked . | . . . Robot Schematics Acquired . | . . . Robots Built . | . . . Authchips . | . . . Time . | . . . Total Robot Build Rating . | . . . Part Schematics Acquired . | . . . Parts Built . | . . . Authchips . | . . . Time . | . . . Total Part Build Rating . | . . . Parts Repaired . | . . . Time . | . . . Parts Recycled . | . . . Recycled Matter . | . . . Retrieved Matter . | . . . Retrieved Components . | . . . Parts Scanalyzed . | . . . Part Schematics Acquired . | . . . Parts Damaged . | . . . Bothacking | -11 -10 -10 ------------ Run | Scr Mat Min Used RIF Installer . | . . . Robots Hacked . | . . . Non-combat . | . . . Combat . | . . . Robot Hacks Applied . | . . . Relay Couplers Released . | . . . Fabnet Peak Effective % . | . . . Robots Rewired . | . . . Allies Hacked . | . . . Hacks Repelled . | . . . Allies | -11 -10 -10 -------- Run | Scr Mat Min Total Allies . | . . . Largest Group . | . . . Highest-Rated Group . | . . . Highest-Rated Ally . | . . . Total Orders . | . . . Ally Attacks . | . . . Total Damage . | . . . Kills . | . . . Allies Corrupted . | . . . Allies Melted . | . . . Intel | -11 -10 -10 ------- Run | Scr Mat Min Robot Analysis Total . | . . . Derelict Logs Recovered . | . . . Drone Launches . | . . . Drone Recoveries . | . . . Exploration | -11 -10 -10 ------------- Run | Scr Mat Min Turns Passed 445 | 75 178 192 Spaces Moved 278 | 61 97 120 Core 16 | 10 . 6 Treads . | . . . Legs 262 | 51 97 114 Wheels . | . . . Hover . | . . . Flight . | . . . Fastest Speed 50 | 50 120 120 Average Speed 124 | 108 120 135 Slowest Speed 250 | 120 120 250 Overloaded Moves . | . . . Propulsion Burnouts . | . . . Robots Hopped . | . . . Cave-ins Triggered . | . . . Exploration Rate (%) 24 | 5 30 37 Regions Visited 2 Branch Regions 1 Pre-discovered Areas . | . . . Known Exits Taken . | . . . Unknown Exits Taken 2 | 1 1 . Scrap Searched . | . . . Spaces Dug 5 | . 5 . Terrain Destroyed 115 | . 57 58 Melee . | . . . Projectile . | . . . AOE 115 | . 57 58 Terrain Rammed . | . . . Walls Destroyed . | . . . Machines Disabled . | . . . Actions | -11 -10 -10 --------- Run | Scr Mat Min Total 334 | 67 131 136 Wait 6 | . . 6 Move 276 | 60 96 120 Hop . | . . . Pick Up 4 | 1 3 . Fast Attach 9 | 6 2 1 Attach 1 | . . 1 Detach 1 | . 1 . Swap 4 | . 4 . Drop . | . . . Fire 33 | . 25 8 Melee . | . . . Ram . | . . . Kick . | . . . Crush . | . . . Escape Stasis . | . . . Rewire . | . . . Trap . | . . . Miscellaneous . | . . . Route ------- -11/Scrapyard -10/Materials -10/Mines History --------- Turn | Location | Event 12 | -11/Scrapyard | Discovered new exit (range 15) 76 | -11/Scrapyard | Entered Materials 235 | -10/Materials | Discovered new exit (range 10) 254 | -10/Materials | Entered Mines 260 | -10/Mines | Core integrity fell below 50% 289 | -10/Mines | Received a Rocket Launcher from a helpful Derelict 296 | -10/Mines | Lost 3 parts (1p1u1w) 311 | -10/Mines | Build established: Mutant 376 | -10/Mines | Assembled infested the area 442 | -10/Mines | Core integrity fell below 20% 446 | -10/Mines | Destroyed by as-36835 with Assembled Heavy Rifle Last Messages --------------- the wall? Done." 00288_ 9A-D5A(g): "Need a small hole in the wall? Leave that to the mining laser wimps, I say!" 00289_ 9A-D5A(g): "Would you like a rocket launcher? I know I would if I were you, so I'm going to lend you mine." 00289_ 9A-D5A(g) slips back into the shadows. 00290_ Acquired Rocket Launcher. 00376_ ALERT: Infestation in the mines, dispatching Demolisher response squad. 00390_ Imp. Aluminum Leg destroyed. 00390_ Destroyed Imp. Aluminum Leg. 00390_ Destroyed Asb. Hover Unit. 00390_ as-34067 destroyed. 00390_ Grenade Launcher destroyed. 00390_ Destroyed Grenade Launcher. 00395_ as-95700 destroyed. 00431_ Imp. Aluminum Leg destroyed. 00438_ Rocket Launcher destroyed. 00440_ The unstable cave ceiling collapses. 00441_ Acquired 5 matter. Map ----- +----------------------------------------------------+ | ????????????????????????????????????????????????? | | ????????????????????????????????????????????????? | | ????????????????????????????????????????????????? | | ????????????????????????????????????????????????? | | ????????????????????????????????????????????????? | | ????????????????????????????????????????????????? | | ????????????????????????????????????????????????? | | ????????????????????????????????????????????????? | | ????????????????????????????????????????????????# | | ????????????????????????????????????????????????? | | ???????????????????????? ?????????????????????? | | ??????????????????????? ????????????????????? | | ??????????????????????? ? ??????????????????? | | ??????????????????????? ??????????????????? | | ??????????????????????? ???????????????? # | | ????????????????#???#??!%= # ???????????????? | | ????????????????# ?## ?[ ???????????????# | | ????????????????# ? ?# ??????????????? | | ???????????????## t# ##aa ??????????????????## | | ???????????????# # ##???????????????????# | | ???????????????? # #???????????????????? | | ?????????????????# # ????????????????????? | | ??????????????????# % ##???????????????????? | | ?????????????????## =% #???????????????????? | | ??????????????# ## ##???????????????????? | | ??????????????# @ #???????????????????? | | ???????????##?# ##??#????????????????? | | ??????????## ########## ### #????????????????? | | ?????????## ###?????## #????????????????? | | ????????## ###????# #????????????????? | | ???????## ###### ####????????????????? | | ???????# " ##???????????????????? | | ????????# ##????????????????????? | | ?????????# ########?????????????????????? | | ?????????# ###????????????????????????????? | | ????????## ##??????????????????????????????? | | ????????# ######???????????????????????????# | | ????????# # ##?????????????????????###### | | ????????## ##???????????????????## | | ?????????# #######????????????## | | ?????????## ############## | | ??????????# ##### | | ??????????# # ##???############### | | ??????????##### ### ##?????????????????# ### | | ??????????????###?###??????????????????# ##?## | | ???????????????????????????????????????## ##???? | | ????????????????????????????????????????####????? | | ????????????????????????????????????????????????? | | | | | +----------------------------------------------------+ Best States ------------- Heat Dissipation 25 Energy Generation 10 Energy Capacity 125 Matter Stores 135 Matter Capacity 300 Sight Range 16 Terrain Scan Density 10 Armor Coverage 225 Evasion (%) 55 Item Schematics ----------------- None Robot Schematics ------------------ None Fabricated ------------ Nothing Alien Tech Used ----------------- None Achievements -------------- None Challenges ------------ None Game ------ Seed RemoteLinearBoregun Manual? 0 Play Time 00:06:38 Cumulative 121.4 hours Start 2022.03.17 @ 23:34:20 End 2022.03.17 @ 23:40:32 Sessions 1 Manual Loads 0 Difficulty Rogue Special Mode None Game No. 228 Rogue 228 Adventurer 0 Explorer 0 Win Type - Total 0 Types 0/0/0/0/0/0/0/0/0 Lore% 22 Gallery% 43 Achievement% 30 Wizard Run 0 Options --------- ASCII 0 Keyboard 1 Movement Numpad Keybinds 0 Fullscreen 1 Font 18/SmallcapsGlow Map View 76x50 Tactical HUD 1 Map Filters NONE Filters NONE Steam 1 RUN: 811ffcb1-d830-4c93-a744-28afd9f08db5